[Event "Snabb-SM för veteraner, 65+ 2019"]
[Site "Schackcentrum, Vegagatan 20, Gothenburg, Sweden"]
[Date "2019.10.05"]
[Round "2.9"]
[White "Nilsson, Weine"]
[Black "Przysuski, Feliks"]
[Result "1/2-1/2"]
[TimeControl "15 minutes + 10 seconds per move from move one"]
[WhiteFideId "1716727"]
[BlackFideId "1712489"]
[WhiteElo "1847"]
[BlackElo "2008"]

1. Nf3 {[%clk 00:15:17]} {[%emt 00:00:02]} Nf6 {[%clk 00:15:16]} {[%emt
00:00:03]} 2. g3 {[%clk 00:15:25]} {[%emt 00:00:02]} c5 {[%clk 00:15:14]}
{[%emt 00:00:12]} 3. Bg2 {[%clk 00:15:34]} {[%emt 00:00:02]} g6 {[%clk
00:15:23]} {[%emt 00:00:01]} 4. O-O {[%clk 00:15:32]} {[%emt 00:00:12]} Bg7
{[%clk 00:15:30]} {[%emt 00:00:02]} 5. d4 {[%clk 00:15:33]} {[%emt 00:00:10]}
cxd4 {[%clk 00:15:37]} {[%emt 00:00:03]} 6. Nxd4 {[%clk 00:15:39]} {[%emt
00:00:04]} O-O {[%clk 00:15:40]} {[%emt 00:00:06]} 7. e4 {[%clk 00:15:38]}
{[%emt 00:00:11]} d6 {[%clk 00:15:44]} {[%emt 00:00:05]} 8. h3 {[%clk
00:15:29]} {[%emt 00:00:19]} Nbd7 {[%clk 00:15:27]} {[%emt 00:00:27]} 9. c4
{[%clk 00:15:30]} {[%emt 00:00:10]} a6 {[%clk 00:15:23]} {[%emt 00:00:14]} 10.
Nc3 {[%clk 00:15:38]} {[%emt 00:00:02]} Qc7 {[%clk 00:15:01]} {[%emt 00:00:32]}
11. b3 {[%clk 00:14:51]} {[%emt 00:00:57]} Rb8 {[%clk 00:14:20]} {[%emt
00:00:50]} 12. Bb2 {[%clk 00:14:22]} {[%emt 00:00:39]} b6 {[%clk 00:14:20]}
{[%emt 00:00:10]} 13. Kh2 {[%clk 00:14:24]} {[%emt 00:00:08]} Bb7 {[%clk
00:14:26]} {[%emt 00:00:05]} 14. Rc1 {[%clk 00:14:08]} {[%emt 00:00:26]} Nc5
{[%clk 00:14:15]} {[%emt 00:00:20]} 15. Nd5 {[%clk 00:13:46]} {[%emt 00:00:32]}
Qd8 {[%clk 00:13:29]} {[%emt 00:00:56]} 16. Qe2 {[%clk 00:12:49]} {[%emt
00:01:04]} e6 {[%clk 00:10:27]} {[%emt 00:03:15]} 17. Nc3 {[%clk 00:11:56]}
{[%emt 00:01:03]} Qd7 {[%clk 00:10:07]} {[%emt 00:00:30]} 18. Rcd1 {[%clk
00:11:40]} {[%emt 00:00:25]} e5 {[%clk 00:09:59]} {[%emt 00:00:18]} 19. Nc2
{[%clk 00:11:33]} {[%emt 00:00:19]} Rbc8 {[%clk 00:09:37]} {[%emt 00:00:32]} 20.
Rd2 {[%clk 00:10:40]} {[%emt 00:01:02]} Bh6 {[%clk 00:09:11]} {[%emt 00:00:36]}
21. Rdd1 {[%clk 00:10:40]} {[%emt 00:00:10]} Qe7 {[%clk 00:08:25]} {[%emt
00:00:56]} 22. Bc1 {[%clk 00:10:16]} {[%emt 00:00:35]} Bxc1 {[%clk 00:08:20]}
{[%emt 00:00:15]} 23. Rxc1 {[%clk 00:10:24]} {[%emt 00:00:02]} Ne6 {[%clk
00:07:38]} {[%emt 00:00:51]} 24. Rcd1 {[%clk 00:10:28]} {[%emt 00:00:07]} Rfd8
{[%clk 00:07:27]} {[%emt 00:00:20]} 25. Rd2 {[%clk 00:10:34]} {[%emt 00:00:04]}
b5 {[%clk 00:07:12]} {[%emt 00:00:26]} 26. Nd5 {[%clk 00:09:49]} {[%emt
00:00:54]} Bxd5 {[%clk 00:07:14]} {[%emt 00:00:08]} 27. exd5 {[%clk 00:08:08]}
{[%emt 00:01:52]} Nc5 {[%clk 00:07:15]} {[%emt 00:00:08]} 28. cxb5 {[%clk
00:07:29]} {[%emt 00:00:49]} axb5 {[%clk 00:07:19]} {[%emt 00:00:06]} 29. Nb4
{[%clk 00:06:58]} {[%emt 00:00:41]} Qb7 {[%clk 00:06:39]} {[%emt 00:00:49]} 30.
h4 {[%clk 00:06:20]} {[%emt 00:00:48]} Re8 {[%clk 00:06:26]} {[%emt 00:00:23]}
31. Bh3 {[%clk 00:06:17]} {[%emt 00:00:13]} Ra8 {[%clk 00:06:36]} {[%emt
00:00:01]} 32. f3 {[%clk 00:05:41]} {[%emt 00:00:46]} Kg7 {[%clk 00:05:32]}
{[%emt 00:01:14]} 33. Qe3 {[%clk 00:05:47]} {[%emt 00:00:04]} Qb6 {[%clk
00:05:22]} {[%emt 00:00:20]} 34. g4 {[%clk 00:05:24]} {[%emt 00:00:33]} h6
{[%clk 00:05:16]} {[%emt 00:00:15]} 35. Rg1 {[%clk 00:05:16]} {[%emt 00:00:18]}
Nh7 {[%clk 00:05:07]} {[%emt 00:00:18]} 36. g5 {[%clk 00:05:13]} {[%emt
00:00:14]} h5 {[%clk 00:05:06]} {[%emt 00:00:11]} 37. Re1 {[%clk 00:05:10]}
{[%emt 00:00:13]} Qc7 {[%clk 00:05:01]} {[%emt 00:00:14]} 38. Qe2 {[%clk
00:05:11]} {[%emt 00:00:11]} Rf8 {[%clk 00:04:45]} {[%emt 00:00:26]} 39. Qxb5
{[%clk 00:05:11]} {[%emt 00:00:10]} Rab8 {[%clk 00:04:51]} {[%emt 00:00:04]} 40.
Qc4 {[%clk 00:05:03]} {[%emt 00:00:18]} f6 {[%clk 00:04:47]} {[%emt 00:00:14]}
41. gxf6+ {[%clk 00:05:01]} {[%emt 00:00:12]} Rxf6 {[%clk 00:04:48]} {[%emt
00:00:08]} 42. Rf2 {[%clk 00:04:43]} {[%emt 00:00:28]} Rf4 {[%clk 00:04:55]}
{[%emt 00:00:03]} 43. Re4 {[%clk 00:04:48]} {[%emt 00:00:06]} Rbf8 {[%clk
00:04:58]} {[%emt 00:00:06]} 44. Nd3 {[%clk 00:04:48]} {[%emt 00:00:10]} Rxe4
{[%clk 00:05:03]} {[%emt 00:00:05]} 45. fxe4 {[%clk 00:04:53]} {[%emt
00:00:05]} Rxf2+ {[%clk 00:04:48]} {[%emt 00:00:25]} 46. Nxf2 {[%clk 00:05:02]}
{[%emt 00:00:02]} Qf7 {[%clk 00:06:44]} {[%emt 00:00:13]} 47. Qe2 {[%clk
00:05:11]} {[%emt 00:01:13]} Qf4+ {[%clk 00:06:53]} {[%emt 00:00:02]} 48. Kg1
{[%clk 00:05:01]} {[%emt 00:00:18]} Qxh4 {[%clk 00:06:58]} {[%emt 00:00:07]} 49.
b4 {[%clk 00:05:08]} {[%emt 00:00:05]} Qg3+ {[%clk 00:07:01]} {[%emt 00:00:05]}
50. Kf1 {[%clk 00:05:12]} {[%emt 00:00:07]} Ng5 {[%clk 00:07:06]} {[%emt
00:00:04]} 51. Bg2 {[%clk 00:05:06]} {[%emt 00:00:16]} h4 {[%clk 00:07:12]}
{[%emt 00:00:04]} 52. bxc5 {[%clk 00:05:10]} {[%emt 00:00:07]} h3 {[%clk
00:07:21]} 53. Nxh3 {[%clk 00:05:06]} {[%emt 00:00:15]} Nxh3 {[%clk 00:07:29]}
{[%emt 00:00:01]} 54. c6 {[%clk 00:04:50]} {[%emt 00:00:27]} Qf4+ {[%clk
00:07:36]} {[%emt 00:00:02]} 55. Ke1 {[%clk 00:04:37]} {[%emt 00:00:21]} Qc1+
{[%clk 00:07:44]} {[%emt 00:00:03]} 56. Qd1 {[%clk 00:04:43]} {[%emt 00:00:05]}
Qe3+ {[%clk 00:07:53]} {[%emt 00:00:01]} 57. Qe2 {[%clk 00:04:47]} {[%emt
00:00:06]} Qc1+ {[%clk 00:07:57]} {[%emt 00:00:06]} 58. Qd1 {[%clk 00:04:54]}
{[%emt 00:00:03]} Qe3+ {[%clk 00:08:04]} {[%emt 00:00:03]} 59. Qe2 {[%emt
00:00:14]} 1/2-1/2

[Event "Snabb-SM för veteraner, 65+ 2019"]
[Site "Schackcentrum, Vegagatan 20, Gothenburg, Sweden"]
[Date "2019.10.05"]
[Round "3.1"]
[White "Dolata, Henryk"]
[Black "Stroem, Leif"]
[Result "0-1"]
[TimeControl "15 minutes + 10 seconds per move from move one"]
[WhiteFideId "1709046"]
[BlackFideId "1709410"]
[WhiteElo "2064"]
[BlackElo "2014"]

1. e4 {[%clk 00:15:18]} {[%emt 00:00:02]} g6 {[%clk 00:15:19]} {[%emt
00:00:02]} 2. d4 {[%clk 00:15:26]} {[%emt 00:00:01]} Bg7 {[%clk 00:15:28]} 3.
Nc3 {[%clk 00:15:35]} {[%emt 00:00:02]} d6 {[%clk 00:15:37]} {[%emt 00:00:02]}
4. Be2 {[%clk 00:15:43]} {[%emt 00:00:02]} a6 {[%clk 00:15:34]} {[%emt
00:00:13]} 5. a4 {[%clk 00:15:46]} {[%emt 00:00:07]} Nd7 {[%clk 00:15:32]}
{[%emt 00:00:12]} 6. Be3 {[%clk 00:15:30]} {[%emt 00:00:25]} Ngf6 {[%clk
00:15:09]} {[%emt 00:00:34]} 7. h4 {[%clk 00:15:27]} {[%emt 00:00:13]} b6
{[%clk 00:14:17]} {[%emt 00:01:03]} 8. Nh3 {[%clk 00:14:55]} {[%emt 00:00:42]}
Bb7 {[%clk 00:14:20]} {[%emt 00:00:08]} 9. f3 {[%clk 00:14:31]} {[%emt
00:00:34]} e5 {[%clk 00:14:17]} {[%emt 00:00:13]} 10. Qd2 {[%clk 00:13:26]}
{[%emt 00:01:14]} Nh5 {[%clk 00:11:41]} {[%emt 00:02:46]} 11. Bf2 {[%clk
00:13:32]} {[%emt 00:00:04]} exd4 {[%clk 00:11:27]} {[%emt 00:00:24]} 12. Bxd4
{[%clk 00:13:08]} {[%emt 00:00:34]} Bxd4 {[%clk 00:11:35]} {[%emt 00:00:02]} 13.
Qxd4 {[%clk 00:13:16]} {[%emt 00:00:02]} Qxh4+ {[%clk 00:11:44]} {[%emt
00:00:02]} 14. Nf2 {[%clk 00:13:09]} {[%emt 00:00:16]} Qf6 {[%clk 00:11:51]}
{[%emt 00:00:03]} 15. Qd2 {[%clk 00:13:03]} {[%emt 00:00:16]} Ng3 {[%clk
00:11:43]} {[%emt 00:00:19]} 16. Rh3 {[%clk 00:12:59]} {[%emt 00:00:13]} Nxe2
{[%clk 00:11:47]} {[%emt 00:00:06]} 17. Qxe2 {[%clk 00:12:49]} {[%emt
00:00:19]} O-O-O {[%clk 00:11:22]} {[%emt 00:00:35]} 18. Nd3 {[%clk 00:12:01]}
{[%emt 00:00:58]} Qd4 {[%clk 00:11:03]} {[%emt 00:00:30]} 19. O-O-O {[%clk
00:11:51]} {[%emt 00:00:18]} Nc5 {[%clk 00:11:02]} {[%emt 00:00:11]} 20. Nxc5
{[%clk 00:09:49]} {[%emt 00:02:12]} Qxc5 {[%clk 00:11:11]} {[%emt 00:00:02]} 21.
Rdh1 {[%clk 00:08:01]} {[%emt 00:01:57]} h5 {[%clk 00:11:19]} {[%emt 00:00:02]}
22. g4 {[%clk 00:07:36]} {[%emt 00:00:35]} Qe5 {[%clk 00:11:09]} {[%emt
00:00:21]} 23. gxh5 {[%clk 00:06:58]} {[%emt 00:00:48]} Rxh5 {[%clk 00:11:17]}
{[%emt 00:00:02]} 24. Rxh5 {[%clk 00:07:02]} {[%emt 00:00:06]} gxh5 {[%clk
00:11:26]} {[%emt 00:00:01]} 25. Qe3 {[%clk 00:06:51]} {[%emt 00:00:21]} Rh8
{[%clk 00:11:20]} {[%emt 00:00:15]} 26. f4 {[%clk 00:06:20]} {[%emt 00:00:41]}
Qc5 {[%clk 00:11:06]} {[%emt 00:00:25]} 27. Qxc5 {[%clk 00:05:27]} {[%emt
00:01:03]} bxc5 {[%clk 00:11:14]} {[%emt 00:00:02]} 28. Rh4 {[%clk 00:05:32]}
{[%emt 00:00:04]} Kd8 {[%clk 00:11:14]} {[%emt 00:00:11]} 29. Kd2 {[%clk
00:05:41]} Ke7 {[%clk 00:11:24]} 30. Ke3 {[%clk 00:05:50]} f5 {[%clk 00:11:06]}
{[%emt 00:00:29]} 31. exf5 {[%clk 00:05:06]} {[%emt 00:00:55]} Kf6 {[%clk
00:11:15]} 32. Ne2 {[%clk 00:05:14]} {[%emt 00:00:02]} Kxf5 {[%clk 00:11:12]}
{[%emt 00:00:14]} 33. Ng3+ {[%clk 00:05:22]} {[%emt 00:00:02]} Kg6 {[%clk
00:11:22]} 34. a5 {[%clk 00:04:11]} {[%emt 00:01:21]} d5 {[%clk 00:11:14]}
{[%emt 00:00:18]} 35. c3 {[%clk 00:04:03]} {[%emt 00:00:18]} c6 {[%clk
00:11:22]} {[%emt 00:00:01]} 36. b4 {[%clk 00:02:58]} {[%emt 00:01:16]} cxb4
{[%clk 00:11:31]} {[%emt 00:00:02]} 37. cxb4 {[%clk 00:03:07]} Bc8 {[%clk
00:11:39]} 38. Kd4 {[%clk 00:03:12]} {[%emt 00:00:07]} Bg4 {[%clk 00:11:45]}
{[%emt 00:00:04]} 39. Kc5 {[%clk 00:03:17]} {[%emt 00:00:05]} Rb8 {[%clk
00:11:52]} {[%emt 00:00:03]} 40. Kxc6 {[%clk 00:03:18]} {[%emt 00:00:10]} Rxb4
{[%clk 00:12:01]} {[%emt 00:00:01]} 41. Kxd5 {[%clk 00:03:23]} {[%emt
00:00:05]} Rxf4 {[%clk 00:12:09]} {[%emt 00:00:02]} 42. Kc5 {[%clk 00:03:04]}
{[%emt 00:00:28]} Kg5 {[%clk 00:11:55]} {[%emt 00:00:25]} 43. Rh1 {[%clk
00:02:48]} {[%emt 00:00:25]} h4 {[%clk 00:12:04]} {[%emt 00:00:01]} 44. Nf1
{[%clk 00:02:57]} {[%emt 00:00:01]} Be2 {[%clk 00:11:51]} {[%emt 00:00:23]} 45.
Ne3 {[%clk 00:03:02]} {[%emt 00:00:05]} Rf3 {[%clk 00:11:46]} {[%emt 00:00:15]}
46. Kd4 {[%clk 00:02:56]} {[%emt 00:00:16]} Rf4+ {[%clk 00:11:08]} {[%emt
00:00:48]} 47. Ke5 {[%clk 00:02:52]} {[%emt 00:00:13]} Ra4 {[%clk 00:11:16]}
{[%emt 00:00:02]} 48. Rg1 {[%clk 00:02:45]} {[%emt 00:00:17]} Bg4 {[%clk
00:11:16]} {[%emt 00:00:10]} 49. Kd6 {[%clk 00:02:29]} {[%emt 00:00:27]} h3
{[%clk 00:11:13]} {[%emt 00:00:13]} 50. Kc7 {[%clk 00:02:00]} {[%emt 00:00:39]}
Re4 {[%emt 00:00:24]} 51. Nd5 {[%clk 00:01:41]} {[%emt 00:00:28]} Re5 {[%clk
00:10:55]} {[%emt 00:00:16]} 52. Kd6 {[%clk 00:01:42]} {[%emt 00:00:09]} h2
{[%clk 00:10:23]} {[%emt 00:00:42]} 53. Rh1 {[%clk 00:01:33]} {[%emt 00:00:18]}
Rxd5+ {[%clk 00:10:32]} {[%emt 00:00:01]} 0-1

[Event "Snabb-SM för veteraner, 65+ 2019"]
[Site "Schackcentrum, Vegagatan 20, Gothenburg, Sweden"]
[Date "2019.10.05"]
[Round "3.2"]
[White "Wahlstrom, Lennart"]
[Black "Fransson, Lennart"]
[Result "1-0"]
[TimeControl "15 minutes + 10 seconds per move from move one"]
[WhiteFideId "1706829"]
[BlackFideId "1706756"]
[WhiteElo "2109"]
[BlackElo "1983"]

1. e4 {[%clk 00:15:16]} {[%emt 00:00:04]} c6 {[%clk 00:15:17]} {[%emt
00:00:03]} 2. d4 {[%clk 00:15:23]} {[%emt 00:00:03]} d5 {[%clk 00:15:25]}
{[%emt 00:00:01]} 3. exd5 {[%clk 00:15:31]} {[%emt 00:00:03]} cxd5 {[%clk
00:15:33]} {[%emt 00:00:02]} 4. c4 {[%clk 00:15:38]} {[%emt 00:00:02]} e6
{[%clk 00:15:28]} {[%emt 00:00:14]} 5. Nc3 {[%clk 00:15:45]} {[%emt 00:00:03]}
Nf6 {[%clk 00:15:36]} {[%emt 00:00:02]} 6. Nf3 {[%clk 00:15:53]} {[%emt
00:00:03]} Be7 {[%clk 00:15:43]} {[%emt 00:00:04]} 7. Bd3 {[%clk 00:15:51]}
{[%emt 00:00:11]} O-O {[%clk 00:15:49]} {[%emt 00:00:03]} 8. O-O {[%clk
00:15:58]} {[%emt 00:00:03]} Nc6 {[%clk 00:15:33]} {[%emt 00:00:26]} 9. c5
{[%clk 00:15:43]} {[%emt 00:00:25]} b6 {[%clk 00:15:13]} {[%emt 00:00:31]} 10.
Bb5 {[%clk 00:15:25]} {[%emt 00:00:28]} Bb7 {[%clk 00:13:42]} {[%emt 00:01:41]}
11. Bxc6 {[%clk 00:15:24]} {[%emt 00:00:11]} Bxc6 {[%clk 00:13:50]} {[%emt
00:00:02]} 12. b4 {[%clk 00:15:08]} {[%emt 00:00:25]} bxc5 {[%clk 00:13:52]}
{[%emt 00:00:08]} 13. bxc5 {[%clk 00:15:16]} {[%emt 00:00:03]} Ne4 {[%clk
00:13:17]} {[%emt 00:00:44]} 14. Qc2 {[%clk 00:11:43]} {[%emt 00:03:43]} Bf6
{[%clk 00:09:21]} {[%emt 00:04:06]} 15. Bf4 {[%clk 00:11:00]} {[%emt 00:00:53]}
g5 {[%clk 00:08:45]} {[%emt 00:00:46]} 16. Be5 {[%clk 00:10:05]} {[%emt
00:01:05]} Be7 {[%clk 00:08:18]} {[%emt 00:00:37]} 17. Rfe1 {[%clk 00:07:13]}
{[%emt 00:03:03]} f6 {[%clk 00:07:48]} {[%emt 00:00:40]} 18. Bg3 {[%clk
00:07:19]} {[%emt 00:00:04]} g4 {[%clk 00:05:34]} {[%emt 00:02:23]} 19. Nd2
{[%clk 00:07:09]} {[%emt 00:00:20]} f5 {[%clk 00:05:31]} {[%emt 00:00:14]} 20.
Be5 {[%clk 00:06:37]} {[%emt 00:00:42]} Bf6 {[%clk 00:05:23]} {[%emt 00:00:18]}
21. Ndxe4 {[%clk 00:05:40]} {[%emt 00:01:07]} Bxe5 {[%clk 00:04:54]} {[%emt
00:00:39]} 22. dxe5 {[%clk 00:05:44]} {[%emt 00:00:05]} fxe4 {[%clk 00:04:47]}
{[%emt 00:00:18]} 23. Qd2 {[%clk 00:05:25]} {[%emt 00:00:29]} Qh4 {[%clk
00:03:40]} {[%emt 00:01:17]} 24. Qe2 {[%clk 00:02:42]} {[%emt 00:02:53]} Rf5
{[%clk 00:03:17]} {[%emt 00:00:32]} 25. g3 {[%clk 00:02:38]} {[%emt 00:00:14]}
Qh3 {[%clk 00:02:46]} {[%emt 00:00:40]} 26. Qf1 {[%clk 00:02:34]} {[%emt
00:00:16]} Qxf1+ {[%clk 00:02:54]} {[%emt 00:00:02]} 27. Rxf1 {[%clk 00:02:43]}
Rxe5 {[%clk 00:03:01]} {[%emt 00:00:04]} 28. Rab1 {[%clk 00:02:44]} {[%emt
00:00:09]} d4 {[%clk 00:03:00]} {[%emt 00:00:11]} 29. Ne2 {[%clk 00:02:53]}
{[%emt 00:00:02]} Rd8 {[%clk 00:03:01]} {[%emt 00:00:09]} 30. Nf4 {[%clk
00:02:58]} {[%emt 00:00:05]} Kf7 {[%clk 00:02:59]} {[%emt 00:00:11]} 31. Rbc1
{[%clk 00:02:37]} {[%emt 00:00:31]} d3 {[%clk 00:02:55]} {[%emt 00:00:14]} 32.
Rfd1 {[%emt 00:00:16]} Rg5 {[%clk 00:01:53]} {[%emt 00:01:08]} 33. Ng2 {[%clk
00:02:26]} {[%emt 00:00:18]} Rgd5 {[%clk 00:01:47]} {[%emt 00:00:15]} 34. Ne3
{[%clk 00:02:32]} {[%emt 00:00:05]} Rd4 {[%clk 00:01:54]} {[%emt 00:00:03]} 35.
Nxg4 {[%clk 00:02:32]} {[%emt 00:00:10]} Bd5 {[%clk 00:01:18]} {[%emt
00:00:46]} 36. Rd2 {[%clk 00:02:23]} {[%emt 00:00:19]} Ke7 {[%clk 00:01:22]}
{[%emt 00:00:06]} 37. Rc3 {[%clk 00:01:37]} {[%emt 00:00:55]} h5 {[%clk
00:01:29]} {[%emt 00:00:02]} 38. Ne3 {[%clk 00:01:46]} {[%emt 00:00:01]} Bc6
{[%clk 00:01:36]} {[%emt 00:00:04]} 39. Nc4 {[%clk 00:01:52]} {[%emt 00:00:04]}
R8d5 {[%clk 00:01:38]} {[%emt 00:00:08]} 40. Na5 {[%clk 00:01:54]} {[%emt
00:00:07]} Bd7 {[%clk 00:01:32]} {[%emt 00:00:16]} 41. Nb7 {[%clk 00:01:42]}
{[%emt 00:00:23]} Rb4 {[%clk 00:01:31]} {[%emt 00:00:11]} 42. Nd6 {[%clk
00:01:39]} {[%emt 00:00:13]} Rb1+ {[%clk 00:01:33]} {[%emt 00:00:07]} 43. Kg2
{[%clk 00:01:48]} Bc6 {[%clk 00:01:39]} {[%emt 00:00:06]} 44. Nxe4 {[%clk
00:01:45]} {[%emt 00:00:13]} Re1 {[%clk 00:01:01]} {[%emt 00:00:47]} 45. f3
{[%clk 00:01:41]} {[%emt 00:00:16]} Rd4 {[%clk 00:01:04]} {[%emt 00:00:05]} 46.
Kf2 {[%clk 00:01:43]} {[%emt 00:00:08]} Rh1 {[%clk 00:01:04]} {[%emt 00:00:10]}
47. Ke3 {[%clk 00:01:49]} {[%emt 00:00:04]} Re1+ {[%clk 00:01:07]} {[%emt
00:00:07]} 48. Kxd4 {[%clk 00:01:55]} {[%emt 00:00:04]} 1-0